fUST/lending_fUST_20250716
["ID","MTS","AMOUNT","RATE_DAILY","PERIOD"]
[372359076,1752612637386,-160.0,0.0002,3]
[372359077,1752612637396,-874.59577548,0.00020135,2]
[372359078,1752612637406,-151.0,0.00020159,2]
[372359079,1752612637416,-500.0,0.00020159,2]
[372359080,1752612637426,-500.0,0.00020159,2]
[372359082,1752612637435,-15257.61780938,0.0002016,2]
[372359084,1752612637444,-151.0,0.0002016,2]
[372359085,1752612637454,-151.395279,0.0002016,2]
[372359086,1752612637463,-429.271138,0.0002016,2]
[372359087,1752612637473,-151.0,0.0002016,2]
[372359088,1752612637482,-151.0,0.0002016,2]
[372359090,1752612637492,-445.171046,0.00020187,2]
[372359092,1752612637501,-460.0,0.00020233,2]
[372359094,1752612637511,-460.0,0.00020233,2]
[372359096,1752612637521,-460.0,0.00020233,2]
[372359097,1752612637530,-460.0,0.00020233,2]
[372359098,1752612637540,-460.0,0.00020233,2]
[372359099,1752612637549,-460.0,0.00020233,2]
[372359101,1752612637559,-460.0,0.00020233,2]
[372359102,1752612637569,-460.0,0.00020233,2]
[372359103,1752612637579,-460.0,0.00020233,2]
[372359104,1752612637588,-460.0,0.00020233,2]
[372359105,1752612637598,-249.29026326,0.00020233,2]
[372359106,1752612637608,-460.0,0.00020233,2]
[372359107,1752612637618,-460.0,0.00020234,2]
[372359108,1752612637628,-460.0,0.00020234,2]
[372359109,1752612637637,-460.0,0.00020234,2]
[372359110,1752612637647,-543.88,0.00020234,2]
[372359111,1752612637656,-460.0,0.00020234,2]
[372359112,1752612637666,-460.0,0.00020234,2]
[372359113,1752612637675,-460.0,0.00020234,2]
[372359114,1752612637685,-517.5,0.00020234,2]
[372359115,1752612637696,-460.0,0.00020234,2]
[372359117,1752612637706,-460.0,0.00020234,2]
[372359119,1752612637715,-460.0,0.00020234,2]
[372359121,1752612637725,-460.0,0.00020234,2]
[372359122,1752612637734,-460.0,0.00020234,2]
[372359124,1752612637743,-460.0,0.00020234,2]
[372359127,1752612637753,-460.0,0.00020234,2]
[372359128,1752612637762,-460.0,0.00020234,2]
[372359131,1752612637771,-460.0,0.00020234,2]
[372359133,1752612637780,-460.0,0.00020234,2]
[372359135,1752612637790,-460.0,0.00020234,2]
[372359137,1752612637799,-460.0,0.00020234,2]
[372359139,1752612637809,-854.88,0.00020234,2]
[372359141,1752612637818,-460.0,0.00020234,2]
[372359143,1752612637828,-591.56,0.00020234,2]
[372359144,1752612637837,-460.0,0.00020234,2]
[372359146,1752612637849,-460.0,0.00020234,2]
[372359148,1752612637859,-460.0,0.00020234,2]
[372359150,1752612637868,-460.0,0.00020234,2]
[372359153,1752612637879,-460.0,0.00020234,2]
[372359155,1752612637889,-460.0,0.00020234,2]
[372359157,1752612637899,-460.0,0.00020234,2]
[372359159,1752612637908,-460.0,0.00020234,2]
[372359161,1752612637918,-460.0,0.00020234,2]
[372359163,1752612637928,-460.0,0.00020234,2]
[372359165,1752612637938,-481.01,0.00020234,2]
[372359167,1752612637948,-529.26,0.00020234,2]
[372359169,1752612637958,-460.0,0.00020234,2]
[372359171,1752612637968,-460.0,0.00020234,2]
[372359173,1752612637977,-213.03748073,0.00020234,2]
[372359175,1752612637993,-246.96251927,0.00020234,2]
[372359177,1752612638002,-460.0,0.00020234,2]
[372359180,1752612638012,-261.31861977,0.00020234,2]
[372359182,1752612638023,-198.68138023,0.00020234,2]
[372359184,1752612638033,-460.0,0.00020234,2]
[372359186,1752612638043,-85.87082031,0.00020234,2]
[372359188,1752612638054,-311.8772773,0.00020234,2]
[372359190,1752612638063,-460.0,0.00020234,2]
[372359192,1752612638074,-460.0,0.00020234,2]
[372359194,1752612638083,-460.0,0.00020234,2]
[372359196,1752612638093,-460.0,0.00020234,2]
[372359198,1752612638102,-460.0,0.00020234,2]
[372359200,1752612638112,-460.0,0.00020234,2]
[372359202,1752612638126,-460.0,0.00020234,2]
[372359204,1752612638136,-460.0,0.00020234,2]
[372359206,1752612638146,-296.26496118,0.00020234,2]
[372359246,1752612638502,-460.0,0.00019961,2]
[372359248,1752612638511,-460.0,0.00019961,2]
[372359250,1752612638521,-37.74024295,0.00020234,2]
[372359252,1752612638530,-309.89584363,0.00020234,2]
[372359254,1752612638542,-150.10415637,0.00020234,2]
[372359257,1752612638552,-460.0,0.00020234,2]
[372359259,1752612638562,-460.0,0.00020234,2]
[372359260,1752612638571,-460.0,0.00020234,2]
[372359263,1752612638580,-460.0,0.00020234,2]
[372359264,1752612638589,-460.0,0.00020234,2]
[372359267,1752612638599,-460.0,0.00020234,2]
[372359269,1752612638608,-460.0,0.00020234,2]
[372359271,1752612638618,-318.00519883,0.00020234,2]
[372359273,1752612638630,-500.0,0.00020234,2]
[372359274,1752612638639,-460.0,0.00020234,2]
[372359277,1752612638649,-460.0,0.00020235,2]
[372359279,1752612638659,-460.0,0.00020235,2]
[372359281,1752612638668,-427.84210958,0.00020235,2]
[372359283,1752612638677,-460.0,0.00020235,2]
[372359285,1752612638686,-460.0,0.00020235,2]
[372359287,1752612638696,-151.0,0.00020235,2]
[372359289,1752612638705,-460.0,0.00020235,2]
[372359291,1752612638715,-460.0,0.00020235,2]
[372359293,1752612638725,-460.0,0.00020235,2]
[372359295,1752612638734,-151.0,0.00020235,2]
[372359297,1752612638744,-151.0,0.00020235,2]
[372359299,1752612638753,-460.0,0.00020235,2]
[372359301,1752612638762,-460.0,0.00020235,2]
[372359303,1752612638772,-331.06121522,0.00020235,2]
[372359305,1752612638783,-128.93878478,0.00020235,2]
[372359307,1752612638793,-460.0,0.00020235,2]
[372359309,1752612638802,-269.30004468,0.00020235,2]
[372359327,1752612638959,-190.69995532,0.00020235,2]
[372359329,1752612638969,-500.0,0.00020235,2]
[372359331,1752612638979,-340.68250359,0.00020235,2]
[372359333,1752612639000,-85.49230941,0.00020235,2]
[372359335,1752612639012,-426.174813,0.00020235,2]
[372359337,1752612639022,-460.0,0.00020235,2]
[372359339,1752612639031,-8.19287759,0.00020235,2]
[372359341,1752612639042,-801.02999131,0.00020235,2]
[372359343,1752612639054,-196.4971311,0.00020235,2]
[372359345,1752612639063,-460.0,0.00020236,2]
[372359347,1752612639073,-460.0,0.00020236,2]
[372359349,1752612639083,-151.0,0.00020236,2]
[372359351,1752612639092,-375.70183003,0.00020236,2]
[372359353,1752612639101,-460.0,0.00020236,2]
[372359355,1752612639110,-460.0,0.00020236,2]
[372359357,1752612639123,-460.0,0.00020236,2]
[372359359,1752612639132,-460.0,0.00020236,2]
[372359361,1752612639141,-460.0,0.00020236,2]
[372359363,1752612639150,-460.0,0.00020236,2]
[372359365,1752612639159,-460.0,0.00020236,2]
[372359367,1752612639168,-542.63967015,0.00020236,2]
[372359369,1752612639177,-460.0,0.00020236,2]
[372359371,1752612639186,-460.0,0.00020236,2]
[372359373,1752612639196,-460.0,0.00020236,2]
[372359375,1752612639205,-460.0,0.00020236,2]
[372359377,1752612639215,-460.0,0.00020236,2]
[372359379,1752612639224,-475.89056441,0.00020236,2]
[372359381,1752612639233,-460.0,0.00020236,2]
[372359383,1752612639243,-460.0,0.00020236,2]
[372359385,1752612639252,-460.0,0.00020236,2]
[372359387,1752612639261,-460.0,0.00020236,2]
[372359389,1752612639271,-460.0,0.00020236,2]
[372359391,1752612639281,-460.0,0.00020236,2]
[372359393,1752612639291,-460.0,0.00020236,2]
[372359395,1752612639300,-460.0,0.00020236,2]
[372359397,1752612639313,-460.0,0.00020236,2]
[372359399,1752612639323,-460.0,0.00020236,2]
[372359401,1752612639336,-460.0,0.00020236,2]
[372359403,1752612639346,-460.0,0.00020236,2]
[372359405,1752612639356,-460.0,0.00020236,2]
[372359407,1752612639366,-460.0,0.00020236,2]
[372359409,1752612639379,-460.0,0.00020236,2]
[372359412,1752612639389,-151.0,0.00020236,2]
[372359415,1752612639399,-460.0,0.00020236,2]
[372359418,1752612639414,-460.0,0.00020236,2]
[372359420,1752612639427,-460.0,0.00020236,2]
[372359422,1752612639441,-460.0,0.00020236,2]
[372359425,1752612639453,-460.0,0.00020236,2]
[372359427,1752612639466,-460.0,0.00020236,2]
[372359429,1752612639477,-460.0,0.00020236,2]
[372359431,1752612639489,-460.0,0.00020236,2]
[372359435,1752612639503,-460.0,0.00020236,2]
[372359438,1752612639515,-460.0,0.00020236,2]
[372359441,1752612639528,-460.0,0.00020236,2]
[372359446,1752612639541,-460.0,0.00020236,2]
[372359449,1752612639554,-460.0,0.00020236,2]
[372359452,1752612639567,-460.0,0.00020236,2]
[372359457,1752612639580,-460.0,0.00020236,2]
[372359460,1752612639592,-541.67989777,0.00020236,2]
[372359465,1752612639605,-461.87592283,0.00020236,2]
[372359468,1752612639617,-460.0,0.00020236,2]
[372359471,1752612639630,-151.0,0.00020236,2]
[372359474,1752612639642,-460.0,0.00020236,2]
[372359478,1752612639656,-151.0,0.00020236,2]
[372359480,1752612639668,-460.0,0.00020236,2]
[372359483,1752612639681,-460.0,0.00020236,2]
[372359485,1752612639695,-460.0,0.00020236,2]
[372359487,1752612639707,-460.0,0.00020236,2]
[372359489,1752612639719,-460.0,0.00020236,2]
[372359492,1752612639730,-460.0,0.00020236,2]
[372359494,1752612639740,-460.0,0.00020236,2]
[372359496,1752612639753,-460.0,0.00020236,2]
[372359498,1752612639765,-460.0,0.00020236,2]
[372359501,1752612639777,-460.0,0.00020236,2]
[372359503,1752612639789,-460.0,0.00020236,2]
[372359505,1752612639803,-460.0,0.00020236,2]
[372359508,1752612639815,-460.0,0.00020236,2]
[372359510,1752612639828,-460.0,0.00020236,2]
[372359513,1752612639840,-460.0,0.00020236,2]
[372359515,1752612639853,-460.0,0.00020236,2]
[372359517,1752612639866,-460.0,0.00020236,2]
[372359520,1752612639879,-460.0,0.00020236,2]
[372359522,1752612639889,-500.0,0.00020236,2]
[372359524,1752612639899,-426.174813,0.00020236,2]
[372359526,1752612639910,-426.174813,0.00020236,2]
[372359528,1752612639921,-460.0,0.00020236,2]
[372359530,1752612639935,-460.0,0.00020236,2]
[372359533,1752612639949,-460.0,0.00020236,2]
[372359537,1752612639963,-460.0,0.00020236,2]
[372359540,1752612639972,-460.0,0.00020236,2]
[372359543,1752612639983,-460.0,0.00020236,2]
[372359547,1752612639994,-460.0,0.00020236,2]
[372359549,1752612640005,-460.0,0.00020237,2]
[372359551,1752612640018,-460.000001,0.00020237,2]
[372359553,1752612640029,-460.0,0.00020237,2]
[372359556,1752612640039,-271.234835,0.00020237,2]
[372359560,1752612640050,-460.0,0.00020237,2]
[372359563,1752612640060,-429.271138,0.00020237,2]
[372359566,1752612640071,-460.0,0.00020237,2]
[372359569,1752612640083,-460.0,0.00020237,2]
[372359572,1752612640095,-460.0,0.00020237,2]
[372359577,1752612640107,-460.0,0.00020237,2]
[372359580,1752612640118,-460.0,0.00020237,2]
[372359583,1752612640129,-470.43062227,0.00020237,2]
[372359586,1752612640141,-460.0,0.00020237,2]
[372359589,1752612640152,-460.0,0.00020237,2]
[372359594,1752612640163,-460.0,0.00020237,2]
[372359597,1752612640175,-460.0,0.00020237,2]
[372359600,1752612640186,-460.0,0.00020237,2]
[372359603,1752612640197,-460.0,0.00020237,2]
[372359606,1752612640208,-460.0,0.00020237,2]
[372359610,1752612640219,-460.0,0.00020237,2]
[372359614,1752612640230,-460.0,0.00020237,2]
[372359617,1752612640241,-460.0,0.00020237,2]
[372359620,1752612640251,-500.0,0.00020237,2]
[372359622,1752612640262,-264.15011975,0.00020238,2]
[372359633,1752612640366,-460.0,0.0001996,2]
[372359635,1752612640380,-195.84988025,0.00020238,2]
[372359638,1752612640390,-194.19204257,0.00020238,2]
[372359640,1752612640402,-265.80795743,0.00020238,2]
[372359642,1752612640412,-460.0,0.00020238,2]
[372359644,1752612640421,-151.0,0.00020238,2]
[372359646,1752612640431,-460.0,0.00020238,2]
[372359648,1752612640440,-460.0,0.00020238,2]
[372359650,1752612640450,-151.0,0.00020238,2]
[372359652,1752612640459,-90.24568791,0.00020238,2]
[372359654,1752612640471,-369.75431209,0.00020238,2]
[372359656,1752612640481,-460.0,0.00020238,2]
[372359658,1752612640491,-460.0,0.00020238,2]
[372359660,1752612640500,-151.0,0.00020238,2]
[372359662,1752612640510,-460.0,0.00020238,2]
[372359664,1752612640519,-153.94418672,0.00020238,2]
[372359666,1752612640531,-306.05581328,0.00020238,2]
[372359684,1752612640689,-408.72499485,0.00020238,2]
[372359687,1752612640705,-51.27500515,0.00020238,2]
[372359689,1752612640715,-460.0,0.00020238,2]
[372359691,1752612640724,-479.16,0.00020238,2]
[372359693,1752612640734,-460.0,0.00020238,2]
[372359695,1752612640743,-460.0,0.00020238,2]
[372359697,1752612640753,-151.0,0.00020238,2]
[372359699,1752612640762,-460.0,0.00020238,2]
[372359701,1752612640771,-460.0,0.00020238,2]
[372359703,1752612640781,-396.07405602,0.00020238,2]
[372359705,1752612640793,-63.92594398,0.00020238,2]
[372359707,1752612640802,-328.02232111,0.00020238,2]
[372359709,1752612640814,-131.97767889,0.00020238,2]
[372359711,1752612640823,-537.4197325,0.00020273,2]
[372359713,1752612640833,-500.0,0.00020273,2]
[372359715,1752612640842,-283.49767731,0.00020273,2]
[372359717,1752612640851,-497.06134359,0.00020273,2]
[372359719,1752612640861,-500.0,0.00020273,2]
[372359722,1752612640871,-500.0,0.00020273,2]
[372359723,1752612640880,-500.0,0.00020273,2]
[372359725,1752612640889,-500.0,0.00020273,2]
[372359727,1752612640898,-500.0,0.00020273,2]
[372359730,1752612640908,-315.50837465,0.00020273,2]
[372359732,1752612640917,-500.0,0.00020273,2]
[372359734,1752612640927,-500.0,0.00020273,2]
[372359736,1752612640936,-500.0,0.00020273,2]
[372359738,1752612640950,-472.61081092,0.00020273,2]
[372359740,1752612640963,-502.26266064,0.00020273,2]
[372359741,1752612640972,-500.0,0.00020273,2]
[372359743,1752612640983,-151.0,0.00020273,2]
[372359745,1752612640992,-151.0,0.00020273,2]
[372359747,1752612641001,-426.174813,0.00020273,2]
[372359750,1752612641011,-426.174813,0.00020273,2]
[372359751,1752612641020,-460.0,0.00020507,2]
[372359753,1752612641029,-460.0,0.00020507,2]
[372359755,1752612641039,-460.0,0.00020507,2]
[372359757,1752612641048,-460.0,0.00020507,2]
[372359760,1752612641058,-460.0,0.00020507,2]
[372359761,1752612641067,-460.0,0.00020507,2]
[372359763,1752612641078,-460.0,0.00020507,2]
[372359766,1752612641088,-460.0,0.00020507,2]
[372359768,1752612641098,-460.0,0.00020507,2]
[372359770,1752612641107,-460.0,0.00020508,2]
[372359772,1752612641117,-460.0,0.00020508,2]
[372359774,1752612641132,-460.0,0.00020508,2]
[372359776,1752612641141,-460.0,0.00020508,2]
[372359778,1752612641150,-473.8,0.00020508,2]
[372359780,1752612641160,-460.0,0.00020508,2]
[372359782,1752612641170,-460.0,0.00020508,2]
[372359784,1752612641179,-460.0,0.00020508,2]
[372359786,1752612641188,-460.0,0.00020508,2]
[372359788,1752612641197,-460.0,0.00020508,2]
[372359789,1752612641206,-460.0,0.00020508,2]
[372359792,1752612641217,-460.0,0.00020508,2]
[372359793,1752612641226,-460.0,0.00020508,2]
[372359796,1752612641236,-460.0,0.00020508,2]
[372359798,1752612641246,-854.88,0.00020508,2]
[372359800,1752612641255,-460.0,0.00020508,2]
[372359802,1752612641264,-591.56,0.00020508,2]
[372359803,1752612641273,-206.4147359,0.00020508,2]
[372360005,1752612643162,-253.5852641,0.00020508,2]
[372360007,1752612643171,-98.40367373,0.00020508,2]
[372360010,1752612643183,-361.59632627,0.00020508,2]
[372360012,1752612643192,-460.0,0.00020508,2]
[372360014,1752612643201,-460.0,0.00020508,2]
[372360016,1752612643210,-460.0,0.00020508,2]
[372360018,1752612643219,-460.0,0.00020508,2]
[372360020,1752612643229,-460.0,0.00020508,2]
[372360022,1752612643238,-397.76,0.00020508,2]
[372360024,1752612643247,-474.09,0.00020508,2]
[372360026,1752612643256,-460.0,0.00020508,2]
[372360028,1752612643266,-481.01,0.00020508,2]
[372360030,1752612643275,-529.26,0.00020508,2]
[372360032,1752612643284,-460.0,0.00020508,2]
[372360034,1752612643293,-460.0,0.00020508,2]
[372360036,1752612643302,-460.0,0.00020508,2]
[372360038,1752612643311,-460.0,0.00020508,2]
[372360040,1752612643321,-500.0,0.00020508,2]
[372360042,1752612643334,-294.82495466,0.00020508,2]
[372360044,1752612643344,-460.0,0.00020508,2]
[372360046,1752612643353,-460.0,0.00020508,2]
[372360048,1752612643362,-460.0,0.00020508,2]
[372360050,1752612643372,-460.0,0.00020508,2]
[372360052,1752612643382,-460.0,0.00020508,2]
[372360054,1752612643391,-460.0,0.00020508,2]
[372360056,1752612643401,-460.0,0.00020508,2]
[372360058,1752612643412,-460.0,0.00020508,2]
[372360060,1752612643422,-460.0,0.00020508,2]
[372360062,1752612643431,-460.0,0.00020508,2]
[372360064,1752612643440,-460.0,0.00020508,2]
[372360066,1752612643450,-460.0,0.00020508,2]
[372360068,1752612643459,-460.0,0.00020508,2]
[372360070,1752612643469,-460.0,0.00020509,2]
[372360072,1752612643479,-460.0,0.00020509,2]
[372360074,1752612643490,-460.0,0.00020509,2]
[372360076,1752612643500,-460.0,0.00020509,2]
[372360078,1752612643509,-429.271138,0.00020509,2]
[372360080,1752612643519,-460.0,0.00020509,2]
[372360082,1752612643528,-460.0,0.00020509,2]
[372360084,1752612643537,-460.0,0.00020509,2]
[372360087,1752612643547,-460.0,0.00020509,2]
[372360089,1752612643556,-290.48248489,0.00020509,2]
[372360315,1752612646011,-460.0,0.0001996,2]
[372360317,1752612646021,-308.94080849,0.00020234,2]
[372360319,1752612646033,-151.05919151,0.00020234,2]
[372360321,1752612646042,-460.0,0.00020508,2]
[372360323,1752612646052,-7.35213525,0.00020509,2]
[372362802,1752612771431,166.519718,0.00019178,2]
[372362805,1752612867310,395.029499,0.00018962,2]
[372362808,1752613180512,2176.81708119,0.00018958,2]
[372362809,1752613180537,6328.84322441,0.00018958,2]
[372362810,1752613246578,302.75782099,0.000189,2]
[372362811,1752613246634,303.18159719,0.00019089,2]
[372362816,1752613432863,666.0,0.00019178,2]
[372362817,1752613445132,2399.21735741,0.00018958,2]
[372362818,1752613445156,7600.78264259,0.00018958,2]
[372362821,1752613499084,416.472995,0.00013699,2]
[372362822,1752613545140,-255.0,0.00019705,2]
[372362823,1752613545162,-171.41687656,0.00019856,2]
[372362824,1752613545184,-813.84,0.00019952,3]
[372362825,1752613545206,-300.0,0.00019953,2]
[372362826,1752613545228,-6.5689964,0.00019954,2]
[372362827,1752613547098,-293.4310036,0.00019954,2]
[372362828,1752613547121,-300.0,0.00019954,2]
[372362829,1752613547144,-89.89671642,0.00019954,2]
[372362830,1752613580692,1982.74436241,0.00018957,2]
[372362831,1752613580717,10000.0,0.00018957,2]
[372362832,1752613580741,10000.0,0.00018957,2]
[372362833,1752613580767,2917.25563759,0.00018957,2]
[372362834,1752613636085,-1200.0,0.00019953,2]
[372362835,1752613636107,-300.0,0.00019953,2]
[372362836,1752613636127,-155.0,0.00019953,2]
[372362837,1752613636151,-51.95912874,0.00019954,2]
[372362838,1752613636185,-158.14415484,0.00019954,2]
[372362839,1752613636209,-300.0,0.00019954,2]
[372362840,1752613636232,-1200.0,0.00019954,2]
[372362841,1752613636254,-460.0,0.00019954,2]
[372362842,1752613636276,-460.0,0.00019954,2]
[372362843,1752613636300,-460.0,0.00019954,2]
[372362844,1752613636322,-484.58287118,0.00019954,2]
[372362845,1752613636344,-500.0,0.00019954,2]
[372362846,1752613636366,-500.0,0.00019954,2]
[372362847,1752613636388,-500.0,0.00019954,2]
[372362848,1752613636411,-638.27303892,0.00019954,2]
[372362849,1752613636435,-500.0,0.00019954,2]
[372362850,1752613636459,-424.83178788,0.00019954,2]
[372362851,1752613636481,-474.88877464,0.00019954,2]
[372362852,1752613652092,-216.19505471,0.00019853,2]
[372362853,1752613652113,-638.70019431,0.00019954,2]
[372362855,1752613795327,205.626121,0.00019178,2]
[372362865,1752613832279,-177.37089849,0.00019854,2]
[372362866,1752613832291,-2888.54492691,0.00019857,2]
[372362867,1752613832303,-3893.7327464,0.00019857,2]
[372362868,1752613832313,-273.69436901,0.00019952,2]
[372362869,1752613832325,-26.30563099,0.00019952,2]
[372362870,1752613832335,-460.0,0.00019953,2]
[372362871,1752613832346,-460.0,0.00019953,2]
[372362872,1752613832356,-460.0,0.00019955,2]
[372362873,1752613832367,-598.62206074,0.00019955,2]
[372362874,1752613832377,-460.0,0.00019955,2]
[372362875,1752613832387,-460.0,0.00019955,2]
[372362876,1752613832397,-401.82874715,0.00019955,2]
[372362877,1752613832406,-460.0,0.00019955,2]
[372362878,1752613832416,-852.52,0.00019955,2]
[372362879,1752613832427,-1375.05,0.00019955,2]
[372362880,1752613832437,-460.0,0.00019955,2]
[372362881,1752613832447,-460.0,0.00019955,2]
[372362883,1752613832456,-460.0,0.00019955,2]
[372362885,1752613832466,-460.0,0.00019955,2]
[372362887,1752613832475,-460.0,0.00019955,2]
[372362889,1752613832484,-460.0,0.00019955,2]
[372362891,1752613832494,-460.0,0.00019955,2]
[372362893,1752613832504,-1458.17,0.00019955,2]
[372362895,1752613832513,-460.0,0.00019955,2]
[372362897,1752613832523,-1286.18,0.00019955,2]
[372362899,1752613832532,-460.0,0.00019955,2]
[372362901,1752613832541,-460.0,0.00019955,2]
[372362903,1752613832550,-460.0,0.00019955,2]
[372362905,1752613832560,-460.0,0.00019955,2]
[372362907,1752613832570,-460.0,0.00019955,2]
[372362909,1752613832579,-327.79628436,0.00019955,2]
[372363102,1752613838216,-460.0,0.00019953,2]
[372363103,1752613838226,-107.9316113,0.00019954,2]
[372363105,1752613838237,-357.27000869,0.00019954,2]
[372363107,1752613838248,-34.79838001,0.00019954,2]
[372363109,1752613838257,-500.0,0.00019954,2]
[372363111,1752613838266,-500.0,0.00019954,2]
[372363113,1752613838275,-315.8713768,0.00019954,2]
[372363115,1752613838283,-500.0,0.00019954,2]
[372363117,1752613838293,-500.0,0.00019954,2]
[372363119,1752613838302,-414.76868539,0.00019954,2]
[372363120,1752613838311,-500.0,0.00019954,2]
[372363122,1752613838320,-500.0,0.00019954,2]
[372363124,1752613838330,-500.0,0.00019954,2]
[372363126,1752613838339,-500.0,0.00019954,2]
[372363128,1752613838347,-500.0,0.00019954,2]
[372363130,1752613838357,-500.0,0.00019954,2]
[372363132,1752613838366,-500.0,0.00019954,2]
[372363134,1752613838375,-500.0,0.00019954,2]
[372363136,1752613838384,-500.0,0.00019954,2]
[372363138,1752613838395,-500.0,0.00019954,2]
[372363139,1752613838405,-155.33913615,0.00019954,2]
[372363140,1752613838414,-500.0,0.00019954,2]
[372363142,1752613838423,-500.0,0.00019954,2]
[372363144,1752613838432,-500.0,0.00019954,2]
[372363146,1752613838441,-500.0,0.00019954,2]
[372363148,1752613838450,-556.72920269,0.00019954,2]
[372363150,1752613838459,-500.0,0.00019954,2]
[372363152,1752613838468,-500.0,0.00019954,2]
[372363154,1752613838477,-500.0,0.00019954,2]
[372363156,1752613838486,-500.0,0.00019954,2]
[372363158,1752613838495,-500.0,0.00019954,2]
[372363160,1752613838504,-500.0,0.00019954,2]
[372363162,1752613838513,-500.0,0.00019954,2]
[372363164,1752613838522,-500.0,0.00019954,2]
[372363166,1752613838532,-500.0,0.00019954,2]
[372363168,1752613838541,-500.0,0.00019954,2]
[372363169,1752613838549,-305.60432517,0.00019954,2]
[372363170,1752613838558,-132.20371564,0.00019955,2]
[372363171,1752613838567,-460.0,0.00019955,2]
[372363172,1752613838577,-583.58252042,0.00019955,2]
[372363173,1752613838585,-1077.37,0.00019955,2]
[372363174,1752613838593,-460.0,0.00019955,2]
[372363175,1752613838602,-460.0,0.00019955,2]
[372363176,1752613838610,-460.0,0.00019955,2]
[372363177,1752613838620,-460.0,0.00019955,2]
[372363178,1752613838628,-460.0,0.00019956,2]
[372363179,1752613838637,-460.0,0.00019956,2]
[372363180,1752613838647,-460.0,0.00019956,2]
[372363181,1752613838656,-460.0,0.00019956,2]
[372363182,1752613838665,-460.0,0.00019956,2]
[372363183,1752613838674,-460.0,0.00019956,2]
[372363184,1752613838686,-460.0,0.00019956,2]
[372363185,1752613838696,-461.59525047,0.00019956,2]
[372363186,1752613838705,-460.0,0.00019956,2]
[372363187,1752613838715,-460.0,0.00019956,2]
[372363188,1752613838723,-460.0,0.00019956,2]
[372363189,1752613838732,-460.0,0.00019956,2]
[372363190,1752613838740,-327.71838445,0.00019956,2]
[372363191,1752613838750,-460.0,0.00019956,2]
[372363192,1752613838759,-460.0,0.00019956,2]
[372363193,1752613838769,-460.0,0.00019956,2]
[372363194,1752613838778,-460.0,0.00019956,2]
[372363195,1752613838787,-460.0,0.00019956,2]
[372363196,1752613838797,-460.0,0.00019956,2]
[372363197,1752613838806,-327.35339739,0.00019956,2]
[372363198,1752613838815,-460.0,0.00019956,2]
[372363199,1752613838825,-460.0,0.00019956,2]
[372363200,1752613838834,-460.0,0.00019956,2]
[372363201,1752613838844,-460.0,0.00019956,2]
[372363202,1752613838853,-460.0,0.00019957,2]
[372363203,1752613838862,-460.0,0.00019957,2]
[372363204,1752613838871,-321.22124517,0.00019957,2]
[372363205,1752613838881,-460.0,0.00019957,2]
[372363206,1752613838890,-460.0,0.00019957,2]
[372363207,1752613838899,-460.0,0.00019957,2]
[372363208,1752613838907,-460.0,0.00019957,2]